fUSD/lending_fUSD_20240422
["ID","MTS","AMOUNT","RATE_DAILY","PERIOD"]
[323167134,1713766239225,-500.0,0.00016438,2]
[323167135,1713766239234,-152.13482,0.00016438,2]
[323167136,1713766239243,-500.0,0.00016438,2]
[323167137,1713766239253,-500.0,0.00016438,2]
[323167138,1713766239262,-500.0,0.00016438,2]
[323167139,1713766239271,-633.04,0.00016438,2]
[323167140,1713766239281,-151.154755,0.00016438,2]
[323167141,1713766239290,-500.0,0.00016438,2]
[323167142,1713766239299,-164.19480225,0.00016438,2]
[323167143,1713766239309,-500.0,0.00016438,2]
[323167144,1713766239318,-500.0,0.00016438,2]
[323167145,1713766239328,-500.0,0.00016438,2]
[323167146,1713766239338,-832.96,0.00016438,2]
[323167147,1713766239347,-501.40574201,0.00016438,2]
[323167148,1713766239356,-500.0,0.00016438,2]
[323167149,1713766239365,-500.0,0.00016438,2]
[323167150,1713766239374,-500.0,0.00016438,2]
[323167151,1713766239383,-500.0,0.00016438,2]
[323167152,1713766239393,-588.42,0.00016438,2]
[323167153,1713766239404,-500.0,0.00016438,2]
[323167154,1713766239413,-500.0,0.00016438,2]
[323167155,1713766239422,-500.0,0.00016438,2]
[323167156,1713766239431,-500.0,0.00016438,2]
[323167157,1713766239440,-502.33666579,0.00016438,2]
[323167158,1713766239450,-151.0,0.00016438,2]
[323167159,1713766239459,-151.0,0.00016438,2]
[323167160,1713766239468,-154.85449,0.00016438,2]
[323167161,1713766239477,-500.0,0.00016438,2]
[323167162,1713766239486,-500.0,0.00016438,2]
[323167163,1713766239496,-151.0,0.00016438,2]
[323167164,1713766239506,-252.591678,0.00016438,2]
[323167165,1713766239515,-500.0,0.00016438,2]
[323167166,1713766239524,-151.0,0.00016438,2]
[323167167,1713766239534,-500.0,0.00016438,2]
[323167168,1713766239543,-500.0,0.00016438,2]
[323167169,1713766239552,-693.31,0.00016438,2]
[323167170,1713766239562,-500.0,0.00016438,2]
[323167171,1713766239571,-505.57,0.00016438,2]
[323167172,1713766239580,-500.0,0.00016438,2]
[323167173,1713766239589,-500.0,0.00016438,2]
[323167174,1713766239598,-500.0,0.00016438,2]
[323167175,1713766239607,-500.0,0.00016438,2]
[323167176,1713766239616,-1023.97,0.00016438,2]
[323167177,1713766239626,-500.0,0.00016438,2]
[323167178,1713766239636,-500.0,0.00016438,2]
[323167179,1713766239645,-500.0,0.00016438,2]
[323167180,1713766239654,-500.0,0.00016438,2]
[323167181,1713766239664,-532.85,0.00016438,2]
[323167182,1713766239675,-1061.06,0.00016438,2]
[323167183,1713766239685,-500.0,0.00016438,2]
[323167184,1713766239695,-500.0,0.00016438,2]
[323167185,1713766239705,-541.76,0.00016438,2]
[323167186,1713766239714,-500.0,0.00016438,2]
[323167187,1713766239724,-599.54,0.00016438,2]
[323167188,1713766239734,-500.0,0.00016438,2]
[323167189,1713766239743,-500.0,0.00016438,2]
[323167190,1713766239753,-500.0,0.00016438,2]
[323167191,1713766239762,-500.0,0.00016438,2]
[323167192,1713766239772,-500.0,0.00016438,2]
[323167193,1713766239781,-500.0,0.00016438,2]
[323167194,1713766239791,-500.0,0.00016438,2]
[323167195,1713766239800,-824.22,0.00016438,2]
[323167196,1713766239809,-500.0,0.00016438,2]
[323167197,1713766239819,-500.0,0.00016438,2]
[323167198,1713766239828,-575.5,0.00016438,2]
[323167199,1713766239837,-500.0,0.00016438,2]
[323167200,1713766239846,-869.82,0.00016438,2]
[323167201,1713766239855,-500.0,0.00016438,2]
[323167202,1713766239864,-249.04259656,0.00016438,2]
[323167203,1713766239873,-568.74,0.00016438,2]
[323167204,1713766239882,-500.0,0.00016438,2]
[323167205,1713766239891,-151.0,0.00016438,2]
[323167206,1713766239905,-151.0,0.00016438,2]
[323167207,1713766239915,-151.0,0.00016438,2]
[323167208,1713766239924,-500.0,0.00016438,2]
[323167209,1713766239933,-500.0,0.00016438,2]
[323167210,1713766239943,-154.966243,0.00016438,2]
[323167211,1713766239954,-576.62234232,0.00016438,2]
[323167212,1713766239963,-500.0,0.00016438,2]
[323167213,1713766239972,-151.0,0.00016438,2]
[323167214,1713766239983,-514.23,0.00016438,2]
[323167215,1713766239993,-160.561509,0.00016438,2]
[323167216,1713766240002,-500.0,0.00016438,2]
[323167217,1713766240012,-500.0,0.00016438,2]
[323167218,1713766240021,-500.0,0.00016438,2]
[323167219,1713766240030,-500.0,0.00016438,2]
[323167220,1713766240040,-695.48,0.00016438,2]
[323167221,1713766240048,-194.34484669,0.00016438,2]
[323167222,1713766240058,-500.0,0.00016438,2]
[323167223,1713766240067,-500.0,0.00016438,2]
[323167224,1713766240076,-500.0,0.00016438,2]
[323167225,1713766240085,-594.79,0.00016438,2]
[323167226,1713766240095,-500.0,0.00016438,2]
[323167227,1713766240104,-475.33059774,0.00016438,2]
[323167228,1713766240114,-500.0,0.00016438,2]
[323167229,1713766240123,-500.0,0.00016438,2]
[323167230,1713766240132,-1224.78,0.00016438,2]
[323167232,1713766240142,-517.72,0.00016438,2]
[323167235,1713766240160,-500.0,0.00016438,2]
[323167236,1713766240178,-695.25,0.00016438,2]
[323167237,1713766240195,-531.64,0.00016438,2]
[323167238,1713766240214,-515.15,0.00016438,2]
[323167239,1713766240231,-607.2,0.00016438,2]
[323167240,1713766240248,-500.0,0.00016438,2]
[323167241,1713766240266,-500.0,0.00016438,2]
[323167242,1713766240281,-540.48,0.00016438,2]
[323167243,1713766240300,-500.0,0.00016438,2]
[323167244,1713766240316,-533.97,0.00016438,2]
[323167245,1713766240334,-569.68,0.00016438,2]
[323167246,1713766240354,-602.77,0.00016438,2]
[323167247,1713766240371,-500.0,0.00016438,2]
[323167248,1713766240384,-500.0,0.00016438,2]
[323167249,1713766240404,-500.0,0.00016438,2]
[323167250,1713766240418,-587.41,0.00016438,2]
[323167251,1713766240433,-151.0,0.00016438,2]
[323167252,1713766240447,-500.0,0.00016438,2]
[323167253,1713766240463,-151.0,0.00016438,2]
[323167254,1713766240479,-151.0,0.00016438,2]
[323167255,1713766240494,-151.0,0.00016438,2]
[323167256,1713766240509,-500.0,0.00016438,2]
[323167257,1713766240524,-151.0,0.00016438,2]
[323167258,1713766240539,-500.0,0.00016438,2]
[323167259,1713766240560,-500.0,0.00016438,2]
[323167260,1713766240575,-502.62855746,0.00016438,2]
[323167261,1713766240590,-500.0,0.00016438,2]
[323167262,1713766240606,-500.0,0.00016438,2]
[323167263,1713766240621,-500.0,0.00016438,2]
[323167264,1713766240636,-500.0,0.00016438,2]
[323167265,1713766240651,-518.61110201,0.00016438,2]
[323167266,1713766240667,-151.0,0.00016438,2]
[323167267,1713766240681,-151.0,0.00016438,2]
[323167268,1713766240696,-151.0,0.00016438,2]
[323167269,1713766240712,-500.0,0.00016438,2]
[323167270,1713766240727,-151.0,0.00016438,2]
[323167271,1713766240742,-528.45619744,0.00016438,2]
[323167272,1713766240757,-485.58435021,0.00016438,2]
[323167273,1713766240772,-151.0,0.00016438,2]
[323167274,1713766240787,-151.0,0.00016438,2]
[323167275,1713766240801,-151.0,0.00016438,2]
[323167276,1713766240817,-1144.93,0.00016438,2]
[323167277,1713766240832,-500.0,0.00016438,2]
[323167278,1713766240847,-500.5127347,0.00016438,2]
[323167279,1713766240864,-500.0,0.00016438,2]
[323167280,1713766240879,-500.0,0.00016438,2]
[323167281,1713766240897,-500.0,0.00016438,2]
[323167282,1713766240912,-1152.99,0.00016438,2]
[323167283,1713766240927,-645.26,0.00016438,2]
[323167284,1713766240942,-500.0,0.00016438,2]
[323167285,1713766240957,-500.0,0.00016438,2]
[323167286,1713766240974,-500.0,0.00016438,2]
[323167287,1713766240989,-500.0,0.00016438,2]
[323167288,1713766241004,-500.0,0.00016438,2]
[323167289,1713766241019,-500.0,0.00016438,2]
[323167290,1713766241034,-500.0,0.00016438,2]
[323167291,1713766241048,-500.0,0.00016438,2]
[323167292,1713766241063,-500.0,0.00016438,2]
[323167293,1713766241079,-500.0,0.00016438,2]
[323167294,1713766241094,-500.0,0.00016438,2]
[323167295,1713766241110,-750.73,0.00016438,2]
[323167296,1713766241126,-500.0,0.00016438,2]
[323167297,1713766241141,-349.61540226,0.00016438,2]
[323167298,1713766241159,-500.0,0.00016438,2]
[323167299,1713766241174,-500.0,0.00016438,2]
[323167300,1713766241189,-500.0,0.00016438,2]
[323167301,1713766241205,-500.0,0.00016438,2]
[323167302,1713766241221,-500.0,0.00016438,2]
[323167303,1713766241236,-500.0,0.00016438,2]
[323167304,1713766241251,-500.0,0.00016438,2]
[323167305,1713766241267,-151.0,0.00016438,2]
[323167306,1713766241283,-235.70556975,0.00016438,2]
[323167307,1713766241299,-158.625433,0.00016438,2]
[323167308,1713766241315,-500.36793127,0.00016438,2]
[323167309,1713766241331,-500.0,0.00016438,2]
[323167310,1713766241347,-1013.67,0.00016438,2]
[323167311,1713766241362,-500.0,0.00016438,2]
[323167312,1713766241377,-625.89,0.00016438,2]
[323167313,1713766241392,-500.0,0.00016438,2]
[323167314,1713766241407,-618.17,0.00016438,2]
[323167315,1713766241423,-500.0,0.00016438,2]
[323167316,1713766241438,-151.0,0.00016438,2]
[323167317,1713766241452,-715.42,0.00016438,2]
[323167318,1713766241468,-151.0,0.00016438,2]
[323167319,1713766241483,-165.124442,0.00016438,2]
[323167320,1713766241498,-500.0,0.00016438,2]
[323167321,1713766241512,-500.0,0.00016438,2]
[323167322,1713766241527,-500.0,0.00016438,2]
[323167323,1713766241543,-500.0,0.00016438,2]
[323167324,1713766241558,-151.0,0.00016438,2]
[323167325,1713766241573,-151.0,0.00016438,2]
[323167326,1713766241588,-156.061094,0.00016438,2]
[323167327,1713766241603,-500.0,0.00016438,2]
[323167328,1713766241618,-500.0,0.00016438,2]
[323167329,1713766241632,-500.0,0.00016438,2]
[323167330,1713766241648,-1585.16,0.00016438,2]
[323167331,1713766241664,-500.0,0.00016438,2]
[323167332,1713766241679,-500.0,0.00016438,2]
[323167333,1713766241693,-500.0,0.00016438,2]
[323167334,1713766241708,-500.0,0.00016438,2]
[323167335,1713766241723,-500.0,0.00016438,2]
[323167337,1713766241737,-1223.81,0.00016438,2]
[323167338,1713766241753,-500.0,0.00016438,2]
[323167339,1713766241768,-500.0,0.00016438,2]
[323167340,1713766241784,-500.0,0.00016438,2]
[323167341,1713766241800,-500.0,0.00016438,2]
[323167342,1713766241817,-500.0,0.00016438,2]
[323167343,1713766241832,-515.61247036,0.00016438,2]
[323167344,1713766241848,-501.60517198,0.00016438,2]
[323167345,1713766241862,-500.0,0.00016438,2]
[323167346,1713766241878,-1703.77,0.00016438,2]
[323167347,1713766241893,-551.07,0.00016438,2]
[323167348,1713766242144,-3985.04,0.00016438,2]
[323167349,1713766242173,-612.34,0.00016438,2]
[323167350,1713766242182,-500.0,0.00016438,2]
[323167351,1713766242192,-500.0,0.00016438,2]
[323167352,1713766242201,-500.0,0.00016438,2]
[323167353,1713766242210,-510.46,0.00016438,2]
[323167354,1713766242220,-1342.78,0.00016438,2]
[323167355,1713766242229,-500.0,0.00016438,2]
[323167356,1713766242238,-500.0,0.00016438,2]
[323167357,1713766242248,-500.0,0.00016438,2]
[323167358,1713766242257,-500.0,0.00016438,2]
[323167359,1713766242266,-500.0,0.00016438,2]
[323167360,1713766242274,-521.56,0.00016438,2]
[323167361,1713766242283,-500.0,0.00016438,2]
[323167362,1713766242292,-151.0,0.00016438,2]
[323167363,1713766242301,-151.0,0.00016438,2]
[323167364,1713766242311,-151.0,0.00016438,2]
[323167365,1713766242320,-151.0,0.00016438,2]
[323167366,1713766242329,-500.0,0.00016438,2]
[323167367,1713766242338,-151.0,0.00016438,2]
[323167368,1713766242348,-151.0,0.00016438,2]
[323167369,1713766242358,-151.0,0.00016438,2]
[323167370,1713766242368,-500.0,0.00016438,2]
[323167371,1713766242377,-151.0,0.00016438,2]
[323167372,1713766242386,-2331.54,0.00016438,2]
[323167373,1713766242394,-500.0,0.00016438,2]
[323167374,1713766242405,-151.0,0.00016438,2]
[323167375,1713766242414,-1464.88,0.00016438,2]
[323167376,1713766242424,-516.75,0.00016438,2]
[323167377,1713766242433,-771.11,0.00016438,2]
[323167378,1713766242442,-151.0,0.00016438,2]
[323167379,1713766242451,-151.0,0.00016438,2]
[323167380,1713766242461,-500.0,0.00016438,2]
[323167381,1713766242471,-151.0,0.00016438,2]
[323167382,1713766242481,-500.0,0.00016438,2]
[323167383,1713766242490,-151.0,0.00016438,2]
[323167384,1713766242500,-500.0,0.00016438,2]
[323167385,1713766242509,-151.0,0.00016438,2]
[323167386,1713766242519,-262.240159,0.00016438,2]
[323167387,1713766242530,-501.83482371,0.00016438,2]
[323167388,1713766242538,-500.0,0.00016438,2]
[323167389,1713766242547,-151.0,0.00016438,2]
[323167390,1713766242556,-151.0,0.00016438,2]
[323167391,1713766242565,-500.0,0.00016438,2]
[323167392,1713766242576,-151.0,0.00016438,2]
[323167393,1713766242586,-500.0,0.00016438,2]
[323167394,1713766242595,-151.0,0.00016438,2]
[323167395,1713766242605,-151.0,0.00016438,2]
[323167396,1713766242614,-152.993239,0.00016438,2]
[323167397,1713766242623,-153.463335,0.00016438,2]
[323167398,1713766242632,-1216.98,0.00016438,2]
[323167399,1713766242641,-805.88,0.00016438,2]
[323167400,1713766242650,-500.0,0.00016438,2]
[323167401,1713766242660,-500.0,0.00016438,2]
[323167402,1713766242669,-500.0,0.00016438,2]
[323167403,1713766242678,-500.0,0.00016438,2]
[323167404,1713766242687,-500.0,0.00016438,2]
[323167405,1713766242697,-500.0,0.00016438,2]
[323167406,1713766242706,-500.0,0.00016438,2]
[323167407,1713766242716,-1397.0,0.00016438,2]
[323167408,1713766242725,-500.0,0.00016438,2]
[323167409,1713766242735,-1822.5,0.00016438,2]
[323167410,1713766242744,-500.0,0.00016438,2]
[323167411,1713766242753,-500.0,0.00016438,2]
[323167412,1713766242762,-500.0,0.00016438,2]
[323167413,1713766242772,-500.0,0.00016438,2]
[323167414,1713766242782,-500.0,0.00016438,2]
[323167415,1713766242791,-760.16,0.00016438,2]
[323167416,1713766242800,-500.0,0.00016438,2]
[323167417,1713766242810,-501.14,0.00016438,2]
[323167418,1713766242819,-151.0,0.00016438,2]
[323167419,1713766242830,-151.0,0.00016438,2]
[323167420,1713766242840,-504.17,0.00016438,2]
[323167421,1713766242849,-151.0,0.00016438,2]
[323167422,1713766242859,-2418.32,0.00016438,2]
[323167423,1713766242869,-1043.74,0.00016438,2]
[323167425,1713766242878,-151.0,0.00016438,2]
[323167427,1713766242887,-151.0,0.00016438,2]
[323167428,1713766242896,-151.0,0.00016438,2]
[323167429,1713766242910,-500.0,0.00016438,2]
[323167430,1713766242919,-804.14,0.00016438,2]
[323167431,1713766242928,-151.0,0.00016438,2]
[323167432,1713766242937,-500.94130914,0.00016438,2]
[323167433,1713766242946,-158.302022,0.00016438,2]
[323167435,1713766242956,-1491.32,0.00016438,2]
[323167437,1713766242965,-696.16,0.00016438,2]
[323167438,1713766242974,-500.0,0.00016438,2]
[323167439,1713766242985,-500.0,0.00016438,2]
[323167440,1713766242994,-500.0,0.00016438,2]
[323167441,1713766243003,-500.0,0.00016438,2]
[323167442,1713766243012,-500.0,0.00016438,2]
[323167445,1713766243022,-577.08,0.00016438,2]
[323167448,1713766243031,-500.0,0.00016438,2]
[323167451,1713766243040,-500.0,0.00016438,2]
[323167455,1713766243049,-153.660577,0.00016438,2]
[323167458,1713766243058,-500.0,0.00016438,2]
[323167461,1713766243067,-500.0,0.00016438,2]
[323167464,1713766243076,-502.27711641,0.00016438,2]
[323167467,1713766243086,-652.43,0.00016438,2]
[323167469,1713766243095,-553.08,0.00016438,2]
[323167471,1713766243105,-393.00427577,0.00016438,2]
[323167473,1713766243114,-500.0,0.00016438,2]
[323167475,1713766243125,-1175.23,0.00016438,2]
[323167477,1713766243134,-1087.93,0.00016438,2]
[323167480,1713766243143,-1508.04,0.00016438,2]
[323167483,1713766243154,-1193.11,0.00016438,2]
[323167485,1713766243163,-500.0,0.00016438,2]
[323167488,1713766243172,-500.0,0.00016438,2]
[323167491,1713766243181,-500.0,0.00016438,2]
[323167492,1713766243191,-501.92297224,0.00016438,2]
[323167494,1713766243200,-500.0,0.00016438,2]
[323167495,1713766243210,-1589.49,0.00016438,2]
[323167497,1713766243219,-501.65522726,0.00016438,2]
[323167498,1713766243229,-750.63,0.00016438,2]
[323167500,1713766243238,-501.40562077,0.00016438,2]
[323167502,1713766243247,-500.0,0.00016438,2]
[323167504,1713766243257,-500.0,0.00016438,2]
[323167505,1713766243266,-663.4,0.00016438,2]
[323167507,1713766243275,-1754.43,0.00016438,2]
[323167509,1713766243284,-500.0,0.00016438,2]
[323167510,1713766243293,-3188.25,0.00016438,2]
[323167512,1713766243303,-1333.33,0.00016438,2]
[323167514,1713766243312,-500.0,0.00016438,2]
[323167515,1713766243321,-500.0,0.00016438,2]
[323167516,1713766243331,-500.0,0.00016438,2]
[323167517,1713766243340,-500.0,0.00016438,2]
[323167518,1713766243349,-501.97923314,0.00016438,2]
[323167519,1713766243358,-1839.23,0.00016438,2]
[323167520,1713766243367,-500.0,0.00016438,2]
[323167521,1713766243377,-500.0,0.00016438,2]
[323167522,1713766243386,-500.0,0.00016438,2]
[323167523,1713766243394,-500.0,0.00016438,2]
[323167524,1713766243405,-873.0,0.00016438,2]
[323167525,1713766243414,-502.03238277,0.00016438,2]
[323167526,1713766243422,-500.0,0.00016438,2]
[323167527,1713766243431,-500.0,0.00016438,2]
[323167528,1713766243440,-500.0,0.00016438,2]
[323167529,1713766243449,-502.00795091,0.00016438,2]
[323167530,1713766243460,-500.0,0.00016438,2]
[323167531,1713766243470,-2495.75,0.00016438,2]
[323167532,1713766243480,-1633.0,0.00016438,2]
[323167533,1713766243489,-504.68,0.00016438,2]
[323167534,1713766243500,-500.0,0.00016438,2]
[323167535,1713766243509,-990.97,0.00016438,2]
[323167536,1713766243518,-662.93,0.00016438,2]
[323167537,1713766243528,-640.34,0.00016438,2]
[323167538,1713766243537,-315.683066,0.00016438,2]
[323167539,1713766243546,-422.094783,0.00016438,2]
[323167540,1713766243555,-315.683066,0.00016438,2]
[323167541,1713766243564,-422.094783,0.00016438,2]
[323167542,1713766243574,-500.0,0.00016438,2]
[323167543,1713766243584,-3255.61,0.00016438,2]
[323167544,1713766243593,-315.683066,0.00016438,2]
[323167545,1713766243602,-422.094783,0.00016438,2]
[323167546,1713766243612,-315.683066,0.00016438,2]
[323167547,1713766243621,-422.094783,0.00016438,2]
[323167548,1713766243630,-600.61,0.00016438,2]
[323167549,1713766243639,-422.094783,0.00016438,2]
[323167550,1713766243650,-315.683066,0.00016438,2]
[323167551,1713766243659,-500.0,0.00016438,2]
[323167552,1713766243668,-1551.88,0.00016438,2]
[323167553,1713766243678,-422.094783,0.00016438,2]
[323167554,1713766243688,-315.683066,0.00016438,2]
[323167556,1713766243697,-422.094783,0.00016438,2]
[323167557,1713766243706,-315.683066,0.00016438,2]
[323167560,1713766243716,-422.094783,0.00016438,2]
[323167561,1713766243725,-500.0,0.00016438,2]
[323167562,1713766243734,-315.683066,0.00016438,2]
[323167563,1713766243744,-197.25232516,0.00016438,2]
[323167564,1713766243753,-422.094783,0.00016438,2]
[323167565,1713766243762,-500.0,0.00016438,2]
[323167567,1713766243772,-315.683066,0.00016438,2]
[323167569,1713766243781,-422.094783,0.00016438,2]
[323167571,1713766243790,-315.683066,0.00016438,2]
[323167572,1713766243799,-865.41,0.00016438,2]
[323167574,1713766243809,-422.094783,0.00016438,2]
[323167576,1713766243818,-315.683066,0.00016438,2]
[323167577,1713766243827,-500.46614899,0.00016438,2]
[323167578,1713766243836,-315.683066,0.00016438,2]
[323167579,1713766243845,-422.094783,0.00016438,2]
[323167580,1713766243855,-315.683066,0.00016438,2]
[323167581,1713766243864,-422.094783,0.00016438,2]
[323167582,1713766243873,-500.0,0.00016438,2]
[323167583,1713766243883,-544.09,0.00016438,2]
[323167584,1713766243892,-422.094783,0.00016438,2]
[323167585,1713766243904,-315.683066,0.00016438,2]
[323167586,1713766243913,-422.094783,0.00016438,2]
[323167587,1713766243922,-315.683066,0.00016438,2]
[323167588,1713766243932,-422.094783,0.00016438,2]
[323167589,1713766243941,-315.683056,0.00016438,2]
[323167590,1713766243952,-500.0,0.00016438,2]
[323167591,1713766243963,-500.0,0.00016438,2]
[323167592,1713766243974,-500.0,0.00016438,2]
[323167593,1713766243984,-500.0,0.00016438,2]
[323167594,1713766243993,-2205.59,0.00016438,2]
[323167595,1713766244003,-151.0,0.00016438,2]
[323167596,1713766244014,-1095.41,0.00016438,2]
[323167597,1713766244024,-500.84456947,0.00016438,2]
[323167598,1713766244034,-151.0,0.00016438,2]
[323167599,1713766244044,-151.0,0.00016438,2]
[323167600,1713766244055,-500.0,0.00016438,2]
[323167601,1713766244065,-500.0,0.00016438,2]
[323167602,1713766244075,-707.0,0.00016438,2]
[323167603,1713766244085,-2046.75,0.00016438,2]
[323167604,1713766244094,-2592.0,0.00016438,2]
[323167605,1713766244104,-1602.28,0.00016438,2]
[323167606,1713766244114,-353.95470522,0.00016438,2]
[323167607,1713766244124,-500.0,0.00016438,2]
[323167608,1713766244134,-1589.01,0.00016438,2]
[323167609,1713766244144,-500.0,0.00016438,2]
[323167610,1713766244155,-500.0,0.00016438,2]
[323167611,1713766244165,-500.0,0.00016438,2]
[323167612,1713766244176,-962.92,0.00016438,2]
[323167613,1713766244185,-500.0,0.00016438,2]
[323167614,1713766244195,-1833.98,0.00016438,2]
[323167615,1713766244205,-500.0,0.00016438,2]
[323167616,1713766244215,-500.0,0.00016438,2]
[323167617,1713766244224,-500.0,0.00016438,2]
[323167618,1713766244234,-587.8,0.00016438,2]
[323167619,1713766244244,-577.0,0.00016438,2]
[323167620,1713766244253,-1392.83,0.00016438,2]
[323167621,1713766244263,-502.30838003,0.00016438,2]
[323167622,1713766244274,-560.83,0.00016438,2]
[323167623,1713766244284,-500.0,0.00016438,2]
[323167624,1713766244294,-500.0,0.00016438,2]
[323167625,1713766244303,-994.85,0.00016438,2]
[323167626,1713766244313,-658.52,0.00016438,2]
[323167627,1713766244323,-500.0,0.00016438,2]
[323167628,1713766244334,-500.0,0.00016438,2]
[323167629,1713766244344,-1853.84,0.00016438,2]
[323167630,1713766244354,-539.18,0.00016438,2]
[323167631,1713766244364,-558.98450786,0.00016438,2]
[323167632,1713766244374,-2621.44,0.00016438,2]
[323167633,1713766244383,-500.0,0.00016438,2]
[323167634,1713766244393,-1056.29,0.00016438,2]
[323167635,1713766244404,-501.34891146,0.00016438,2]
[323167636,1713766244413,-1815.18,0.00016438,2]
[323167637,1713766244423,-500.0,0.00016438,2]
[323167638,1713766244433,-500.0,0.00016438,2]
[323167639,1713766244443,-500.0,0.00016438,2]
[323167640,1713766244452,-500.0,0.00016438,2]
[323167641,1713766244462,-500.0,0.00016438,2]
[323167642,1713766244473,-500.0,0.00016438,2]
[323167643,1713766244482,-500.0,0.00016438,2]
[323167644,1713766244492,-2047.43,0.00016438,2]
[323167645,1713766244502,-500.0,0.00016438,2]
[323167646,1713766244512,-500.0,0.00016438,2]
[323167647,1713766244522,-2672.67,0.00016438,2]
[323167648,1713766244531,-500.0,0.00016438,2]
[323167649,1713766244541,-420.70731585,0.00016438,2]
[323167650,1713766244551,-500.0,0.00016438,2]
[323167651,1713766244560,-500.0,0.00016438,2]
[323167652,1713766244570,-500.0,0.00016438,2]
[323167653,1713766244579,-1728.56,0.00016438,2]
[323167654,1713766244588,-500.0,0.00016438,2]
[323167655,1713766244597,-500.0,0.00016438,2]
[323167656,1713766244607,-500.0,0.00016438,2]
[323167657,1713766244615,-626.35,0.00016438,2]
[323167658,1713766244625,-748.2,0.00016438,2]
[323167659,1713766244634,-500.0,0.00016438,2]
[323167660,1713766244643,-500.0,0.00016438,2]
[323167661,1713766244656,-660.31,0.00016438,2]
[323167662,1713766244665,-553.64,0.00016438,2]
[323167663,1713766244674,-687.52,0.00016438,2]
[323167664,1713766244683,-500.0,0.00016438,2]
[323167665,1713766244693,-750.84,0.00016438,2]
[323167666,1713766244702,-500.0,0.00016438,2]
[323167667,1713766244711,-500.0,0.00016438,2]
[323167668,1713766244720,-500.0,0.00016438,2]
[323167669,1713766244729,-500.0,0.00016438,2]
[323167670,1713766244737,-1207.97,0.00016438,2]
[323167671,1713766244747,-578.15,0.00016438,2]
[323167672,1713766244756,-500.0,0.00016438,2]
[323167673,1713766244927,-623.95,0.00016438,2]
[323167674,1713766244957,-1116.59,0.00016438,2]
[323167675,1713766244967,-500.0,0.00016438,2]
[323167676,1713766244976,-1215.14,0.00016438,2]
[323167677,1713766244986,-500.0,0.00016438,2]
[323167678,1713766244996,-500.0,0.00016438,2]
[323167679,1713766245006,-502.40281527,0.00016438,2]
[323167680,1713766245016,-4129.56,0.00016438,2]
[323167681,1713766245025,-502.36084797,0.00016438,2]
[323167682,1713766245035,-500.0,0.00016438,2]
[323167683,1713766245046,-500.0,0.00016438,2]
[323167684,1713766245056,-500.0,0.00016438,2]
[323167685,1713766245065,-500.0,0.00016438,2]
[323167686,1713766245074,-500.0,0.00016438,2]
[323167687,1713766245084,-500.0,0.00016438,2]
[323167688,1713766245093,-1333.67,0.00016438,2]
[323167689,1713766245103,-500.0,0.00016438,2]